[Event "Live Chess"]
[Site "Chess.com"]
[Date "2024.06.01"]
[Round "-"]
[White "vincents82"]
[Black "agamilewska"]
[Result "1/2-1/2"]
[WhiteElo "2086"]
[BlackElo "1774"]
[TimeControl "300"]
[EndTime "12:36:49 PDT"]
[Termination "Game drawn by agreement"]

1. e4 {[%clk 0:04:56.5]} 1... e5 {[%clk 0:04:56.9]} 2. Nf3 {[%clk 0:04:54.6]}
2... Nc6 {[%clk 0:04:55.6]} 3. Bb5 {[%clk 0:04:53.3]} 3... d6 {[%clk 0:04:54.3]}
4. d4 {[%clk 0:04:51.6]} 4... exd4 {[%clk 0:04:53.1]} 5. Nxd4 {[%clk 0:04:50.6]}
5... Bd7 {[%clk 0:04:52.5]} 6. O-O {[%clk 0:04:48.2]} 6... Nxd4 {[%clk
0:04:50.7]} 7. Bxd7+ {[%clk 0:04:46.8]} 7... Qxd7 {[%clk 0:04:49.5]} 8. Qxd4
{[%clk 0:04:45.7]} 8... Nf6 {[%clk 0:04:49.3]} 9. Nc3 {[%clk 0:04:44.1]} 9...
Be7 {[%clk 0:04:42.3]} 10. f4 {[%clk 0:04:39.9]} 10... O-O {[%clk 0:04:40.8]}
11. Be3 {[%clk 0:04:28.8]} 11... Rfe8 {[%clk 0:04:27]} 12. Rad1 {[%clk
0:04:18.5]} 12... Ng4 {[%clk 0:04:00]} 13. Qd3 {[%clk 0:03:50.7]} 13... Nxe3
{[%clk 0:03:57]} 14. Qxe3 {[%clk 0:03:48]} 14... Qc6 {[%clk 0:03:53.5]} 15. Qd3
{[%clk 0:03:42.6]} 15... Bf6 {[%clk 0:03:49.7]} 16. Rfe1 {[%clk 0:03:32.3]}
16... Bxc3 {[%clk 0:03:47.3]} 17. bxc3 {[%clk 0:03:21]} 17... f6 {[%clk
0:03:41.5]} 18. c4 {[%clk 0:03:15.7]} 18... Qb6+ {[%clk 0:03:26.8]} 19. Qd4
{[%clk 0:03:12.6]} 19... Qxd4+ {[%clk 0:03:21.9]} 20. Rxd4 {[%clk 0:03:11.5]}
20... h6 {[%clk 0:03:19.7]} 21. Kf2 {[%clk 0:03:07.2]} 21... Kf7 {[%clk
0:03:18.5]} 22. Kf3 {[%clk 0:03:06.3]} 22... b6 {[%clk 0:03:17.2]} 23. e5 {[%clk
0:03:00.3]} 23... fxe5 {[%clk 0:03:15.9]} 24. fxe5 {[%clk 0:02:59.1]} 24... Re6
{[%clk 0:03:01.6]} 25. Rf4+ {[%clk 0:02:49.6]} 25... Ke7 {[%clk 0:02:59.2]} 26.
Rfe4 {[%clk 0:02:46.9]} 26... dxe5 {[%clk 0:02:56.2]} 27. Rxe5 {[%clk
0:02:45.6]} 27... Rxe5 {[%clk 0:02:56.1]} 28. Rxe5+ {[%clk 0:02:44.5]} 28... Kd6
{[%clk 0:02:55.5]} 29. Rd5+ {[%clk 0:02:42.8]} 29... Kc6 {[%clk 0:02:53.4]} 30.
Rf5 {[%clk 0:02:39.7]} 30... Rd8 {[%clk 0:02:43.9]} 31. Ke3 {[%clk 0:02:33.6]}
31... Re8+ {[%clk 0:02:42.1]} 32. Kd3 {[%clk 0:02:32.8]} 32... Re7 {[%clk
0:02:39.5]} 33. a4 {[%clk 0:02:26.2]} 33... a5 {[%clk 0:02:38.5]} 34. c3 {[%clk
0:02:23.5]} 34... Rd7+ {[%clk 0:02:36.6]} 35. Ke3 {[%clk 0:02:22]} 35... Rd1
{[%clk 0:02:31.9]} 36. Rf7 {[%clk 0:02:16.9]} 36... Re1+ {[%clk 0:02:26.1]} 37.
Kd4 {[%clk 0:02:11]} 37... Rd1+ {[%clk 0:02:16.7]} 38. Ke4 {[%clk 0:02:05.4]}
38... Ra1 {[%clk 0:02:16.1]} 39. Rxg7 {[%clk 0:02:04.2]} 39... Rxa4 {[%clk
0:02:15.3]} 40. Kd4 {[%clk 0:02:00]} 40... Ra2 {[%clk 0:02:10.8]} 41. Rg6+
{[%clk 0:01:58.7]} 41... Kb7 {[%clk 0:02:09.7]} 42. g4 {[%clk 0:01:56.7]} 42...
Rxh2 {[%clk 0:02:08.1]} 43. g5 {[%clk 0:01:54.8]} 43... hxg5 {[%clk 0:02:04.5]}
44. Rxg5 {[%clk 0:01:53.9]} 44... a4 {[%clk 0:02:02.8]} 45. c5 {[%clk
0:01:52.5]} 45... Rh4+ {[%clk 0:01:54.9]} 46. Kd3 {[%clk 0:01:50.7]} 46... a3
{[%clk 0:01:51.8]} 47. cxb6 {[%clk 0:01:47]} 47... Kxb6 {[%clk 0:01:51.7]} 48.
Kc2 {[%clk 0:01:45.6]} 48... Ra4 {[%clk 0:01:49]} 49. Kb1 {[%clk 0:01:40.4]}
49... Rc4 {[%clk 0:01:44.2]} 50. Rg3 {[%clk 0:01:36.7]} 50... Kb5 {[%clk
0:01:43.1]} 51. Ka2 {[%clk 0:01:36]} 51... Ka4 {[%clk 0:01:38.7]} 52. Rh3 {[%clk
0:01:35.1]} 52... c5 {[%clk 0:01:35.9]} 53. Rg3 {[%clk 0:01:34]} 53... Re4
{[%clk 0:01:31.4]} 54. c4 {[%clk 0:01:18]} 54... Re2+ {[%clk 0:01:28.6]} 55. Ka1
{[%clk 0:01:16.9]} 55... Kb4 {[%clk 0:01:23.6]} 56. Rh3 {[%clk 0:01:13.9]} 56...
Rb2 {[%clk 0:01:20.2]} 57. Rxa3 {[%clk 0:01:05.6]} 57... Rc2 {[%clk 0:01:00.9]}
58. Rh3 {[%clk 0:01:01.7]} 58... Rxc4 {[%clk 0:01:00.1]} 59. Kb2 {[%clk
0:00:58.2]} 59... Rf4 {[%clk 0:00:57.3]} 60. Rg3 {[%clk 0:00:55.6]} 60... Rf2+
{[%clk 0:00:56.4]} 61. Kc1 {[%clk 0:00:53.8]} 61... c4 {[%clk 0:00:56.3]} 62.
Rh3 {[%clk 0:00:52.6]} 62... c3 {[%clk 0:00:55.5]} 63. Rh8 {[%clk 0:00:51.7]}
63... Kb3 {[%clk 0:00:52.8]} 64. Rb8+ {[%clk 0:00:50.5]} 64... Kc4 {[%clk
0:00:52]} 65. Rc8+ {[%clk 0:00:49.8]} 65... Kd4 {[%clk 0:00:51.3]} 66. Rd8+
{[%clk 0:00:49.1]} 66... Kc4 {[%clk 0:00:43.2]} 1/2-1/2

[Event "Live Chess"]
[Site "Chess.com"]
[Date "2024.06.01"]
[Round "-"]
[White "educatedlad"]
[Black "stevochess11"]
[Result "0-1"]
[WhiteElo "1748"]
[BlackElo "1698"]
[TimeControl "300"]
[EndTime "12:36:51 PDT"]
[Termination "stevochess11 won by resignation"]

1. d4 {[%clk 0:04:58.9]} 1... Nf6 {[%clk 0:04:58.6]} 2. Bg5 {[%clk 0:04:57]}
2... Ne4 {[%clk 0:04:56.2]} 3. Bf4 {[%clk 0:04:55.4]} 3... g6 {[%clk 0:04:53.8]}
4. f3 {[%clk 0:04:54]} 4... Nf6 {[%clk 0:04:47]} 5. e4 {[%clk 0:04:53.9]} 5...
d6 {[%clk 0:04:45.7]} 6. Nc3 {[%clk 0:04:52.8]} 6... Bg7 {[%clk 0:04:44.1]} 7.
Qd2 {[%clk 0:04:52.4]} 7... c5 {[%clk 0:04:40.9]} 8. Bh6 {[%clk 0:04:51.9]} 8...
O-O {[%clk 0:04:36.8]} 9. Bxg7 {[%clk 0:04:50.7]} 9... Kxg7 {[%clk 0:04:36.1]}
10. Nd5 {[%clk 0:04:49.1]} 10... e6 {[%clk 0:04:27.2]} 11. Nxf6 {[%clk 0:04:46]}
11... Qxf6 {[%clk 0:04:26.2]} 12. h4 {[%clk 0:04:42.1]} 12... cxd4 {[%clk
0:04:19.1]} 13. h5 {[%clk 0:04:40.6]} 13... Nc6 {[%clk 0:04:02.6]} 14. hxg6
{[%clk 0:04:39.4]} 14... fxg6 {[%clk 0:04:01.4]} 15. Qh6+ {[%clk 0:04:37.5]}
15... Kf7 {[%clk 0:03:59.3]} 16. Qxh7+ {[%clk 0:04:36.7]} 16... Qg7 {[%clk
0:03:56.8]} 17. Qh2 {[%clk 0:04:34]} 17... Nb4 {[%clk 0:03:50.9]} 18. O-O-O
{[%clk 0:04:29.8]} 18... Nxa2+ {[%clk 0:03:48.5]} 19. Kb1 {[%clk 0:04:28.3]}
19... Nb4 {[%clk 0:03:28.6]} 20. Qxd6 {[%clk 0:04:26.2]} 20... a5 {[%clk
0:03:15.6]} 21. Rxd4 {[%clk 0:04:10]} 21... Ra6 {[%clk 0:03:08.9]} 22. Qc7+
{[%clk 0:04:07.9]} 22... Kg8 {[%clk 0:03:03.5]} 23. Qxg7+ {[%clk 0:03:55.2]}
23... Kxg7 {[%clk 0:03:03.4]} 24. Bxa6 {[%clk 0:03:52.1]} 24... Nxa6 {[%clk
0:02:55.3]} 25. Ne2 {[%clk 0:03:50.4]} 25... Nb4 {[%clk 0:02:47.1]} 26. c3
{[%clk 0:03:47.9]} 26... Nc6 {[%clk 0:02:45.8]} 27. Rd6 {[%clk 0:03:45.7]} 27...
Ne5 {[%clk 0:02:39.6]} 28. Nd4 {[%clk 0:03:43.2]} 28... Re8 {[%clk 0:02:34]} 29.
f4 {[%clk 0:03:38.2]} 29... Nc4 {[%clk 0:02:32.1]} 30. Rxe6 {[%clk 0:03:06.4]}
30... Bxe6 {[%clk 0:02:26.2]} 31. Nxe6+ {[%clk 0:03:06.3]} 31... Rxe6 {[%clk
0:02:24.9]} 32. b3 {[%clk 0:03:03.4]} 32... Nd2+ {[%clk 0:02:23.9]} 33. Kc2
{[%clk 0:03:02.2]} 33... Nxe4 {[%clk 0:02:23.3]} 34. Re1 {[%clk 0:03:01.1]}
34... Nc5 {[%clk 0:02:20.2]} 35. Rd1 {[%clk 0:02:58.6]} 35... Re2+ {[%clk
0:02:17.6]} 36. Kc1 {[%clk 0:02:55.3]} 0-1

[Event "Live Chess"]
[Site "Chess.com"]
[Date "2024.06.01"]
[Round "-"]
[White "MellowAesthetic"]
[Black "PaulHumphreys"]
[Result "1-0"]
[WhiteElo "2075"]
[BlackElo "1408"]
[TimeControl "300"]
[EndTime "12:36:53 PDT"]
[Termination "MellowAesthetic won by resignation"]

1. e4 {[%clk 0:04:57]} 1... e6 {[%clk 0:04:57.7]} 2. d4 {[%clk 0:04:55.6]} 2...
d5 {[%clk 0:04:56.9]} 3. Nd2 {[%clk 0:04:55.1]} 3... Nc6 {[%clk 0:04:52.1]} 4.
Ngf3 {[%clk 0:04:53.5]} 4... Nf6 {[%clk 0:04:48.7]} 5. e5 {[%clk 0:04:52.8]}
5... Ne4 {[%clk 0:04:46.2]} 6. Bb5 {[%clk 0:04:21.2]} 6... a6 {[%clk 0:04:28]}
7. Bxc6+ {[%clk 0:04:19]} 7... bxc6 {[%clk 0:04:27.4]} 8. O-O {[%clk 0:03:52.2]}
8... f5 {[%clk 0:04:26.1]} 9. exf6 {[%clk 0:03:49.9]} 9... Nxf6 {[%clk
0:04:22.2]} 10. Ne5 {[%clk 0:03:47.1]} 10... c5 {[%clk 0:04:10.1]} 11. Ndf3
{[%clk 0:03:25.7]} 11... Bd7 {[%clk 0:04:00.1]} 12. Ng5 {[%clk 0:03:15.4]} 12...
Qe7 {[%clk 0:03:45.3]} 13. dxc5 {[%clk 0:02:55]} 13... h6 {[%clk 0:03:18.1]} 14.
Ng6 {[%clk 0:02:02.1]} 14... Qxc5 {[%clk 0:02:52.5]} 15. Nxh8 {[%clk 0:02:01.2]}
15... hxg5 {[%clk 0:02:50.4]} 16. Bxg5 {[%clk 0:01:48.9]} 16... O-O-O {[%clk
0:02:41.5]} 17. Nf7 {[%clk 0:01:46.2]} 17... Re8 {[%clk 0:02:37.1]} 18. Ne5
{[%clk 0:01:42.8]} 18... Bb5 {[%clk 0:02:32.2]} 19. Re1 {[%clk 0:01:24.5]} 19...
Ne4 {[%clk 0:02:30.3]} 20. Be3 {[%clk 0:01:17.4]} 20... Qd6 {[%clk 0:02:22.6]}
21. Nf3 {[%clk 0:01:12]} 21... e5 {[%clk 0:02:02.8]} 22. a4 {[%clk 0:01:11.1]}
22... Bc6 {[%clk 0:01:57.6]} 23. Qe2 {[%clk 0:01:08]} 23... Bb7 {[%clk
0:01:54.9]} 24. Rad1 {[%clk 0:01:01.4]} 24... Qg6 {[%clk 0:01:34.6]} 25. c3
{[%clk 0:00:47.1]} 25... Bd6 {[%clk 0:01:26.2]} 26. b4 {[%clk 0:00:33.6]} 26...
Nxc3 {[%clk 0:01:21]} 27. Qd3 {[%clk 0:00:30.5]} 27... e4 {[%clk 0:01:04.2]} 28.
Qxc3 {[%clk 0:00:28.8]} 28... exf3 {[%clk 0:00:59.6]} 29. g3 {[%clk 0:00:27.7]}
29... Rh8 {[%clk 0:00:47]} 30. Bd4 {[%clk 0:00:08.4]} 30... Qe8 {[%clk
0:00:32.6]} 31. Rxe8+ {[%clk 0:00:06.6]} 1-0

[Event "Live Chess"]
[Site "Chess.com"]
[Date "2024.06.01"]
[Round "-"]
[White "Bob2pen"]
[Black "Stanbad1"]
[Result "0-1"]
[WhiteElo "1889"]
[BlackElo "2673"]
[TimeControl "300"]
[EndTime "12:37:01 PDT"]
[Termination "Stanbad1 won by resignation"]

1. e4 {[%clk 0:04:55.2]} 1... e6 {[%clk 0:04:53.6]} 2. d4 {[%clk 0:04:53.4]}
2... d5 {[%clk 0:04:51.1]} 3. Nc3 {[%clk 0:04:52.4]} 3... Nf6 {[%clk 0:04:50]}
4. Bg5 {[%clk 0:04:50.5]} 4... Bb4 {[%clk 0:04:48.2]} 5. e5 {[%clk 0:04:49.1]}
5... h6 {[%clk 0:04:41.5]} 6. Be3 {[%clk 0:04:46.2]} 6... Ne4 {[%clk 0:04:40.6]}
7. Ne2 {[%clk 0:04:44.4]} 7... c5 {[%clk 0:04:30.4]} 8. f3 {[%clk 0:04:41.4]}
8... Nxc3 {[%clk 0:04:28.3]} 9. bxc3 {[%clk 0:04:38.7]} 9... cxd4 {[%clk
0:04:27]} 10. Bxd4 {[%clk 0:04:32]} 10... Be7 {[%clk 0:04:25]} 11. Ng3 {[%clk
0:04:24.4]} 11... Nc6 {[%clk 0:04:21.3]} 12. Bd3 {[%clk 0:04:22.5]} 12... Qa5
{[%clk 0:04:19.3]} 13. O-O {[%clk 0:04:18.7]} 13... Bd7 {[%clk 0:04:17.9]} 14.
Kh1 {[%clk 0:04:16.8]} 14... Rc8 {[%clk 0:04:15.2]} 15. Nh5 {[%clk 0:04:15.3]}
15... g6 {[%clk 0:04:12.9]} 16. Nf6+ {[%clk 0:04:11.7]} 16... Bxf6 {[%clk
0:04:11.1]} 17. exf6 {[%clk 0:04:10]} 17... Nxd4 {[%clk 0:04:10.7]} 18. cxd4
{[%clk 0:04:08.6]} 18... Qd8 {[%clk 0:04:10.2]} 19. Rb1 {[%clk 0:04:05]} 19...
Bc6 {[%clk 0:04:08.1]} 20. Bb5 {[%clk 0:04:00.4]} 20... O-O {[%clk 0:04:04.2]}
21. Bxc6 {[%clk 0:03:58.7]} 21... bxc6 {[%clk 0:04:04.1]} 22. Rb7 {[%clk
0:03:56]} 22... Qxf6 {[%clk 0:04:02.4]} 23. Rxa7 {[%clk 0:03:52.5]} 23... c5
{[%clk 0:04:02.3]} 24. c3 {[%clk 0:03:49.2]} 24... cxd4 {[%clk 0:04:01]} 25.
cxd4 {[%clk 0:03:45.4]} 25... Rc4 {[%clk 0:03:59.5]} 26. Ra4 {[%clk 0:03:41.1]}
26... Rxa4 {[%clk 0:03:55.4]} 27. Qxa4 {[%clk 0:03:39.5]} 27... Rc8 {[%clk
0:03:55]} 28. Rd1 {[%clk 0:03:32.9]} 28... Rc4 {[%clk 0:03:41]} 29. Qa7 {[%clk
0:03:21.9]} 29... Qf4 {[%clk 0:03:38.9]} 30. a4 {[%clk 0:03:17.2]} 30... Rc1
{[%clk 0:03:35]} 31. Qb8+ {[%clk 0:03:11]} 31... Qxb8 {[%clk 0:03:32.7]} 0-1

[Event "Live Chess"]
[Site "Chess.com"]
[Date "2024.06.01"]
[Round "-"]
[White "ossie57"]
[Black "Richardallis"]
[Result "0-1"]
[WhiteElo "1648"]
[BlackElo "2011"]
[TimeControl "300"]
[EndTime "12:37:19 PDT"]
[Termination "Richardallis won by resignation"]

1. c4 {[%clk 0:04:56.5]} 1... c6 {[%clk 0:04:58.3]} 2. Nc3 {[%clk 0:04:51.9]}
2... d5 {[%clk 0:04:57.6]} 3. d4 {[%clk 0:04:49.7]} 3... Bg4 {[%clk 0:04:53.8]}
4. f3 {[%clk 0:04:48.2]} 4... Bh5 {[%clk 0:04:52.3]} 5. e3 {[%clk 0:04:42.5]}
5... e6 {[%clk 0:04:50.3]} 6. Nh3 {[%clk 0:04:39.3]} 6... Bd6 {[%clk 0:04:48.1]}
7. cxd5 {[%clk 0:04:36.9]} 7... exd5 {[%clk 0:04:45.8]} 8. Bd3 {[%clk
0:04:33.9]} 8... Qh4+ {[%clk 0:04:42.5]} 9. g3 {[%clk 0:04:01.8]} 9... Qxh3
{[%clk 0:04:35.6]} 10. g4 {[%clk 0:03:52.3]} 10... Bg3+ {[%clk 0:04:27.6]} 11.
hxg3 {[%clk 0:03:50.9]} 11... Qxh1+ {[%clk 0:04:25.6]} 12. Kd2 {[%clk
0:03:50.8]} 12... Qxd1+ {[%clk 0:04:24.1]} 13. Kxd1 {[%clk 0:03:50.1]} 13... Bg6
{[%clk 0:04:23.4]} 14. Be2 {[%clk 0:03:48.3]} 0-1

[Event "Live Chess"]
[Site "Chess.com"]
[Date "2024.06.01"]
[Round "-"]
[White "KeithArkell"]
[Black "FlyingChessKestrel13"]
[Result "1-0"]
[WhiteElo "2464"]
[BlackElo "2076"]
[TimeControl "300"]
[EndTime "12:37:20 PDT"]
[Termination "KeithArkell won by resignation"]

1. d4 {[%clk 0:04:58]} 1... d5 {[%clk 0:04:59]} 2. Nf3 {[%clk 0:04:57.2]} 2...
Nf6 {[%clk 0:04:58]} 3. c4 {[%clk 0:04:56.7]} 3... dxc4 {[%clk 0:04:57]} 4. e3
{[%clk 0:04:55.7]} 4... e6 {[%clk 0:04:56.2]} 5. Bxc4 {[%clk 0:04:54.6]} 5... c5
{[%clk 0:04:55.3]} 6. O-O {[%clk 0:04:53.3]} 6... Nc6 {[%clk 0:04:54.6]} 7. dxc5
{[%clk 0:04:52.6]} 7... Qxd1 {[%clk 0:04:52.2]} 8. Rxd1 {[%clk 0:04:51.7]} 8...
Bxc5 {[%clk 0:04:51.5]} 9. a3 {[%clk 0:04:51.3]} 9... a6 {[%clk 0:04:49.5]} 10.
b4 {[%clk 0:04:50.6]} 10... Be7 {[%clk 0:04:48.2]} 11. Bb2 {[%clk 0:04:50.1]}
11... O-O {[%clk 0:04:46.6]} 12. Nbd2 {[%clk 0:04:49.4]} 12... b5 {[%clk
0:04:44.6]} 13. Bd3 {[%clk 0:04:47.4]} 13... Bb7 {[%clk 0:04:43.9]} 14. Nb3
{[%clk 0:04:45.2]} 14... Rad8 {[%clk 0:04:41.3]} 15. Rac1 {[%clk 0:04:43.4]}
15... Nd5 {[%clk 0:04:36.6]} 16. Nc5 {[%clk 0:03:47.7]} 16... Bxc5 {[%clk
0:04:33.5]} 17. Rxc5 {[%clk 0:03:47.6]} 17... Nb6 {[%clk 0:04:14.7]} 18. Kf1
{[%clk 0:03:36.2]} 18... Na4 {[%clk 0:04:10.1]} 19. Rc2 {[%clk 0:03:35.2]} 19...
Nxb2 {[%clk 0:04:08.4]} 20. Rxb2 {[%clk 0:03:34.5]} 20... g6 {[%clk 0:03:15.3]}
21. Rc2 {[%clk 0:03:32.9]} 21... Rd7 {[%clk 0:03:10.8]} 22. Ke2 {[%clk
0:03:32.1]} 22... Rfd8 {[%clk 0:03:09.4]} 23. Rc3 {[%clk 0:03:31.4]} 23... Ne7
{[%clk 0:03:06.8]} 24. Bc2 {[%clk 0:03:25.9]} 24... Rxd1 {[%clk 0:03:00.4]} 25.
Bxd1 {[%clk 0:03:25.8]} 25... Rd7 {[%clk 0:02:54.5]} 26. Bb3 {[%clk 0:03:23.8]}
26... Nd5 {[%clk 0:02:50.3]} 27. Bxd5 {[%clk 0:03:22.1]} 27... Bxd5 {[%clk
0:02:48]} 28. Ne5 {[%clk 0:03:20]} 28... Rb7 {[%clk 0:02:46.5]} 29. f3 {[%clk
0:03:18.1]} 29... Kg7 {[%clk 0:02:44.6]} 30. e4 {[%clk 0:03:17.5]} 30... f6
{[%clk 0:02:35.2]} 31. exd5 {[%clk 0:03:14.5]} 31... fxe5 {[%clk 0:02:34.2]} 32.
d6 {[%clk 0:03:13]} 32... Rb6 {[%clk 0:02:25.9]} 33. d7 {[%clk 0:03:09.3]} 33...
Rb8 {[%clk 0:02:18.5]} 34. Rc8 {[%clk 0:03:07.9]} 1-0

[Event "Live Chess"]
[Site "Chess.com"]
[Date "2024.06.01"]
[Round "-"]
[White "Sweet-O"]
[Black "NottheBishopSacrifice"]
[Result "0-1"]
[WhiteElo "1556"]
[BlackElo "2253"]
[TimeControl "300"]
[EndTime "12:37:44 PDT"]
[Termination "NottheBishopSacrifice won by resignation"]

1. d4 {[%clk 0:04:58.8]} 1... d5 {[%clk 0:04:58.2]} 2. Nc3 {[%clk 0:04:58.7]}
2... Nf6 {[%clk 0:04:57]} 3. Bf4 {[%clk 0:04:58.2]} 3... c5 {[%clk 0:04:56.6]}
4. e3 {[%clk 0:04:57.3]} 4... cxd4 {[%clk 0:04:55.2]} 5. Qxd4 {[%clk 0:04:57.2]}
5... Nc6 {[%clk 0:04:53.4]} 6. Qa4 {[%clk 0:04:47.9]} 6... e6 {[%clk 0:04:42.2]}
7. Nb5 {[%clk 0:04:45.8]} 7... Bb4+ {[%clk 0:04:26.3]} 8. c3 {[%clk 0:04:43.5]}
8... Ba5 {[%clk 0:04:13.8]} 9. Nd6+ {[%clk 0:04:41.4]} 9... Ke7 {[%clk
0:04:13.5]} 10. Ne2 {[%clk 0:04:27.8]} 10... Bc7 {[%clk 0:04:09.6]} 11. Nxc8+
{[%clk 0:04:25.1]} 11... Rxc8 {[%clk 0:04:05.5]} 12. Qa3+ {[%clk 0:04:18.4]}
12... Bd6 {[%clk 0:04:03]} 13. Bxd6+ {[%clk 0:04:17.3]} 13... Qxd6 {[%clk
0:04:02.4]} 14. Qxd6+ {[%clk 0:04:15.4]} 14... Kxd6 {[%clk 0:04:02.3]} 15. Nf4
{[%clk 0:04:11]} 15... Rhd8 {[%clk 0:03:59.7]} 16. Bb5 {[%clk 0:04:07.8]} 16...
Ke7 {[%clk 0:03:58.2]} 17. O-O {[%clk 0:04:05.2]} 17... a6 {[%clk 0:03:57.5]}
18. Ba4 {[%clk 0:04:02.9]} 18... Ne5 {[%clk 0:03:56.3]} 19. Bc2 {[%clk
0:03:50.6]} 19... Nc4 {[%clk 0:03:53.6]} 20. Rab1 {[%clk 0:03:39.3]} 20... Nd2
{[%clk 0:03:51]} 0-1

[Event "Live Chess"]
[Site "Chess.com"]
[Date "2024.06.01"]
[Round "-"]
[White "nitrofish07"]
[Black "RichardABates"]
[Result "0-1"]
[WhiteElo "2107"]
[BlackElo "2209"]
[TimeControl "300"]
[EndTime "12:37:45 PDT"]
[Termination "RichardABates won by resignation"]

1. d4 {[%clk 0:04:54.8]} 1... Nf6 {[%clk 0:04:58.3]} 2. c4 {[%clk 0:04:54.2]}
2... e6 {[%clk 0:04:57]} 3. g3 {[%clk 0:04:53.7]} 3... Bb4+ {[%clk 0:04:55.2]}
4. Nd2 {[%clk 0:04:52.4]} 4... O-O {[%clk 0:04:53.2]} 5. Bg2 {[%clk 0:04:52]}
5... d6 {[%clk 0:04:51.8]} 6. Nf3 {[%clk 0:04:51.4]} 6... Nbd7 {[%clk
0:04:50.2]} 7. O-O {[%clk 0:04:50.1]} 7... e5 {[%clk 0:04:48.5]} 8. e4 {[%clk
0:04:48.9]} 8... exd4 {[%clk 0:04:41.6]} 9. Nxd4 {[%clk 0:04:47.4]} 9... Nc5
{[%clk 0:04:39.6]} 10. f3 {[%clk 0:04:36.9]} 10... Nd3 {[%clk 0:04:35.1]} 11.
Nc2 {[%clk 0:04:32.5]} 11... Bc5+ {[%clk 0:04:32.5]} 12. Kh1 {[%clk 0:04:31.7]}
12... Nf2+ {[%clk 0:04:30.2]} 13. Rxf2 {[%clk 0:04:31.1]} 13... Bxf2 {[%clk
0:04:29]} 14. Qe2 {[%clk 0:04:30.6]} 14... Bb6 {[%clk 0:04:24]} 15. a4 {[%clk
0:04:29.8]} 15... a5 {[%clk 0:04:22.3]} 16. Nf1 {[%clk 0:04:24.3]} 16... Be6
{[%clk 0:04:11.2]} 17. b3 {[%clk 0:04:23.1]} 17... Nd7 {[%clk 0:04:07.2]} 18. f4
{[%clk 0:04:17.4]} 18... Nc5 {[%clk 0:04:02.2]} 19. f5 {[%clk 0:04:09.5]} 19...
Bd7 {[%clk 0:04:00.7]} 20. Nd4 {[%clk 0:04:05.5]} 20... Re8 {[%clk 0:03:54.9]}
21. f6 {[%clk 0:04:04]} 21... Qxf6 {[%clk 0:03:52.2]} 22. Bb2 {[%clk 0:03:53.7]}
22... Nxe4 {[%clk 0:03:47.4]} 23. Nb5 {[%clk 0:03:19.8]} 23... Nf2+ {[%clk
0:03:44.6]} 24. Kg1 {[%clk 0:03:13.2]} 24... Rxe2 {[%clk 0:03:37.2]} 25. Bxf6
{[%clk 0:03:11.9]} 25... gxf6 {[%clk 0:03:35.3]} 0-1

[Event "Live Chess"]
[Site "Chess.com"]
[Date "2024.06.01"]
[Round "-"]
[White "Colm_Buckley"]
[Black "IanCalvert2"]
[Result "1-0"]
[WhiteElo "1860"]
[BlackElo "1540"]
[TimeControl "300"]
[EndTime "12:37:52 PDT"]
[Termination "Colm_Buckley won by resignation"]

1. d4 {[%clk 0:04:57.5]} 1... d5 {[%clk 0:04:58]} 2. c4 {[%clk 0:04:56.6]} 2...
c6 {[%clk 0:04:55.2]} 3. e3 {[%clk 0:04:54.5]} 3... Nf6 {[%clk 0:04:53.7]} 4.
Nc3 {[%clk 0:04:53.6]} 4... g6 {[%clk 0:04:52.4]} 5. Nf3 {[%clk 0:04:52.6]} 5...
Bg7 {[%clk 0:04:51.3]} 6. Bd3 {[%clk 0:04:50]} 6... O-O {[%clk 0:04:49.5]} 7.
O-O {[%clk 0:04:48.5]} 7... Bg4 {[%clk 0:04:46.5]} 8. h3 {[%clk 0:04:46.6]} 8...
Bxf3 {[%clk 0:04:45.4]} 9. Qxf3 {[%clk 0:04:45]} 9... dxc4 {[%clk 0:04:43.1]}
10. Bxc4 {[%clk 0:04:43.6]} 10... Nbd7 {[%clk 0:04:40.5]} 11. b3 {[%clk
0:04:39.7]} 11... e5 {[%clk 0:04:34.9]} 12. Bb2 {[%clk 0:04:22.1]} 12... exd4
{[%clk 0:04:31.1]} 13. exd4 {[%clk 0:04:20.3]} 13... Nb6 {[%clk 0:04:29.6]} 14.
Rad1 {[%clk 0:04:13.1]} 14... Nbd5 {[%clk 0:04:24.3]} 15. Rfe1 {[%clk
0:03:58.1]} 15... Qd7 {[%clk 0:04:03.8]} 16. Ne4 {[%clk 0:03:48.7]} 16... Nxe4
{[%clk 0:03:58.5]} 17. Rxe4 {[%clk 0:03:46.8]} 17... Rae8 {[%clk 0:03:50.4]} 18.
Rde1 {[%clk 0:03:34.2]} 18... Rxe4 {[%clk 0:03:46.4]} 19. Qxe4 {[%clk
0:03:28.7]} 19... Rd8 {[%clk 0:03:00.5]} 20. Rd1 {[%clk 0:03:14.9]} 20... Re8
{[%clk 0:02:51.9]} 21. Qf3 {[%clk 0:03:09.1]} 21... Nb6 {[%clk 0:02:40.1]} 22.
Bc3 {[%clk 0:02:56.4]} 22... Nxc4 {[%clk 0:02:30.8]} 23. bxc4 {[%clk 0:02:54.9]}
23... b5 {[%clk 0:02:29.2]} 24. cxb5 {[%clk 0:02:48.5]} 24... cxb5 {[%clk
0:02:26.2]} 25. d5 {[%clk 0:02:44.9]} 25... Bxc3 {[%clk 0:02:05.1]} 26. Qxc3
{[%clk 0:02:42.8]} 26... a6 {[%clk 0:01:57]} 27. d6 {[%clk 0:02:32.3]} 27... Rc8
{[%clk 0:01:45.7]} 28. Qf6 {[%clk 0:02:24.5]} 28... a5 {[%clk 0:01:03.7]} 29.
Re1 {[%clk 0:02:04.3]} 29... Re8 {[%clk 0:00:45.1]} 30. Re7 {[%clk 0:01:45.5]}
30... Rxe7 {[%clk 0:00:39.9]} 31. Qxe7 {[%clk 0:01:39.6]} 31... Qc6 {[%clk
0:00:37.6]} 32. d7 {[%clk 0:01:18.6]} 32... Qc1+ {[%clk 0:00:32.9]} 33. Kh2
{[%clk 0:01:14.7]} 33... Qc7+ {[%clk 0:00:30.5]} 34. g3 {[%clk 0:01:08.1]} 1-0